fUST/lending_fUST_20250724
["ID","MTS","AMOUNT","RATE_DAILY","PERIOD"]
[374604037,1753371061523,-151.0,0.00025506,7]
[374604038,1753371061532,-151.0,0.00025506,7]
[374604039,1753371061542,-151.0,0.00025506,7]
[374604040,1753371061556,-151.0,0.00025506,7]
[374604041,1753371061566,-151.0,0.00025506,7]
[374604042,1753371061577,-151.0,0.00025506,7]
[374604043,1753371061587,-151.0,0.00025506,7]
[374604044,1753371061597,-151.0,0.00025506,7]
[374604045,1753371061606,-151.0,0.00025506,7]
[374604046,1753371061616,-151.0,0.00025506,7]
[374604047,1753371061626,-151.0,0.00025506,7]
[374604048,1753371061635,-151.0,0.00025506,7]
[374604049,1753371061644,-151.0,0.00025506,7]
[374604050,1753371061655,-151.0,0.00025506,7]
[374604051,1753371061664,-151.0,0.00025506,7]
[374604052,1753371061674,-151.0,0.00025506,7]
[374604053,1753371061683,-250.355028,0.00025506,7]
[374604054,1753371061693,-151.0,0.00025506,7]
[374604055,1753371061703,-151.0,0.00025506,7]
[374604056,1753371061713,-151.0,0.00025506,7]
[374604057,1753371061723,-151.0,0.00025506,7]
[374604058,1753371061733,-151.0,0.00025506,7]
[374604059,1753371061743,-151.0,0.00025506,7]
[374604060,1753371061752,-151.0,0.00025506,7]
[374604061,1753371061762,-151.0,0.00025506,7]
[374604062,1753371061770,-151.0,0.00025506,7]
[374604063,1753371061780,-151.0,0.00025506,7]
[374604064,1753371061790,-151.0,0.00025506,7]
[374604065,1753371061804,-151.0,0.00025506,7]
[374604066,1753371061814,-151.0,0.00025506,7]
[374604067,1753371061823,-151.0,0.00025506,7]
[374604068,1753371061833,-228.098356,0.00025506,7]
[374604069,1753371061842,-151.0,0.00025506,7]
[374604070,1753371061852,-151.0,0.00025506,7]
[374604071,1753371061862,-151.0,0.00025506,7]
[374604072,1753371061871,-151.0,0.00025506,7]
[374604073,1753371061881,-151.0,0.00025506,7]
[374604074,1753371061892,-199.635796,0.00025506,7]
[374604075,1753371061903,-151.708702,0.00025506,7]
[374604076,1753371061922,-151.0,0.00025506,7]
[374604077,1753371061941,-151.0,0.00025506,7]
[374604078,1753371061956,-151.0,0.00025506,7]
[374604079,1753371061965,-234.761685,0.00025506,7]
[374604080,1753371061975,-151.183589,0.00025506,7]
[374604081,1753371061985,-203.597045,0.00025506,7]
[374604082,1753371061994,-203.597045,0.00025506,7]
[374604083,1753371062004,-203.597045,0.00025506,7]
[374604084,1753371062013,-203.597045,0.00025506,7]
[374604085,1753371062024,-203.597045,0.00025506,7]
[374604086,1753371062033,-203.597045,0.00025506,7]
[374604087,1753371062043,-203.597045,0.00025506,7]
[374604088,1753371062056,-203.597045,0.00025506,7]
[374604089,1753371062066,-203.597045,0.00025506,7]
[374604090,1753371062075,-203.597045,0.00025506,7]
[374604091,1753371062084,-203.597045,0.00025506,7]
[374604092,1753371062094,-203.597045,0.00025506,7]
[374604093,1753371062103,-203.597045,0.00025506,7]
[374604094,1753371062112,-203.597045,0.00025506,7]
[374604095,1753371062122,-203.597045,0.00025506,7]
[374604096,1753371062132,-203.597045,0.00025506,7]
[374604097,1753371062142,-203.597045,0.00025506,7]
[374604098,1753371062151,-203.597039,0.00025506,7]
[374604099,1753371062161,-165.1606,0.00025506,7]
[374604100,1753371062170,-165.1606,0.00025506,7]
[374604101,1753371062180,-165.1606,0.00025506,7]
[374604102,1753371062190,-165.1606,0.00025506,7]
[374604103,1753371062199,-165.1606,0.00025506,7]
[374604104,1753371062209,-165.1606,0.00025506,7]
[374604105,1753371062219,-165.1606,0.00025506,7]
[374604106,1753371062228,-165.1606,0.00025506,7]
[374604107,1753371062238,-165.1606,0.00025506,7]
[374604108,1753371062248,-165.1606,0.00025506,7]
[374604109,1753371062259,-165.1606,0.00025506,7]
[374604110,1753371062269,-165.1606,0.00025506,7]
[374604111,1753371062280,-165.1606,0.00025506,7]
[374604112,1753371062290,-165.1606,0.00025506,7]
[374604113,1753371062307,-165.1606,0.00025506,7]
[374604114,1753371062319,-165.1606,0.00025506,7]
[374604115,1753371062331,-165.1606,0.00025506,7]
[374604116,1753371062342,-165.160598,0.00025506,7]
[374604117,1753371062354,-195.781739,0.00025506,7]
[374604118,1753371062365,-195.781739,0.00025506,7]
[374604119,1753371062376,-195.781739,0.00025506,7]
[374604120,1753371062388,-195.781739,0.00025506,7]
[374604121,1753371062405,-195.781739,0.00025506,7]
[374604122,1753371062422,-195.781739,0.00025506,7]
[374604123,1753371062434,-195.781739,0.00025506,7]
[374604124,1753371062445,-195.781739,0.00025506,7]
[374604125,1753371062456,-195.781739,0.00025506,7]
[374604126,1753371062466,-195.781739,0.00025506,7]
[374604127,1753371062477,-195.781739,0.00025506,7]
[374604128,1753371062487,-195.781739,0.00025506,7]
[374604129,1753371062653,-195.781739,0.00025506,7]
[374604130,1753371062689,-195.781739,0.00025506,7]
[374604131,1753371062710,-195.781739,0.00025506,7]
[374604132,1753371062732,-195.781739,0.00025506,7]
[374604133,1753371062753,-195.781739,0.00025506,7]
[374604134,1753371062775,-195.78173,0.00025506,7]
[374604135,1753371062802,-418.485009,0.00025506,7]
[374604136,1753371062813,-418.485009,0.00025506,7]
[374604137,1753371062822,-418.485009,0.00025506,7]
[374604138,1753371062832,-418.485009,0.00025506,7]
[374604139,1753371062842,-418.485009,0.00025506,7]
[374604140,1753371062852,-418.485009,0.00025506,7]
[374604141,1753371062862,-418.485009,0.00025506,7]
[374604142,1753371062871,-418.485009,0.00025506,7]
[374604143,1753371062881,-418.485009,0.00025506,7]
[374604144,1753371062890,-418.485009,0.00025506,7]
[374604145,1753371062900,-418.485009,0.00025506,7]
[374604146,1753371062910,-418.485009,0.00025506,7]
[374604147,1753371062919,-418.485009,0.00025506,7]
[374604148,1753371062929,-418.485009,0.00025506,7]
[374604149,1753371062939,-418.485009,0.00025506,7]
[374604150,1753371062948,-418.485009,0.00025506,7]
[374604151,1753371062957,-418.485009,0.00025506,7]
[374604152,1753371062966,-418.485007,0.00025506,7]
[374604153,1753371062976,-151.0,0.00025506,7]
[374604154,1753371062986,-151.0,0.00025506,7]
[374604155,1753371062995,-151.0,0.00025506,7]
[374604156,1753371063005,-151.0,0.00025506,7]
[374604157,1753371063015,-1959.962733,0.00025506,7]
[374604158,1753371063025,-1959.962733,0.00025506,7]
[374604159,1753371063035,-1959.962733,0.00025506,7]
[374604160,1753371063048,-1959.962733,0.00025506,7]
[374604161,1753371063060,-1959.962733,0.00025506,7]
[374604162,1753371063070,-1959.962733,0.00025506,7]
[374604163,1753371063081,-1959.962733,0.00025506,7]
[374604164,1753371063091,-1959.962733,0.00025506,7]
[374604165,1753371063101,-1959.962733,0.00025506,7]
[374604166,1753371063111,-1959.962733,0.00025506,7]
[374604167,1753371063122,-1959.962733,0.00025506,7]
[374604168,1753371063132,-1959.962733,0.00025506,7]
[374604169,1753371063142,-1959.962733,0.00025506,7]
[374604170,1753371063152,-1959.962733,0.00025506,7]
[374604171,1753371063162,-1959.962733,0.00025506,7]
[374604172,1753371063172,-1959.962733,0.00025506,7]
[374604173,1753371063181,-1959.962733,0.00025506,7]
[374604174,1753371063191,-1959.96273,0.00025506,7]
[374604175,1753371063201,-206.0,0.0002551,2]
[374604176,1753371063211,-205.0,0.0002551,2]
[374604177,1753371063220,-209.0,0.0002551,2]
[374604178,1753371063230,-160.0,0.00025514,5]
[374604179,1753371063239,-150.188479,0.00025515,20]
[374604180,1753371063249,-150.188479,0.00025524,20]
[374604181,1753371063259,-164.352872,0.0002553,7]
[374604182,1753371063269,-164.352872,0.0002553,7]
[374604183,1753371063280,-164.352872,0.0002553,7]
[374604184,1753371063290,-164.352872,0.0002553,7]
[374604185,1753371063304,-164.352872,0.0002553,7]
[374604186,1753371063314,-164.352872,0.0002553,7]
[374604187,1753371063324,-164.352872,0.0002553,7]
[374604188,1753371063334,-164.352872,0.0002553,7]
[374604189,1753371063344,-164.352872,0.0002553,7]
[374604190,1753371063354,-164.352872,0.0002553,7]
[374604191,1753371063364,-164.352872,0.0002553,7]
[374604192,1753371063374,-164.352872,0.0002553,7]
[374604193,1753371063384,-164.352872,0.0002553,7]
[374604194,1753371063394,-164.352872,0.0002553,7]
[374604195,1753371063404,-164.352872,0.0002553,7]
[374604196,1753371063414,-164.352872,0.0002553,7]
[374604197,1753371063424,-164.352872,0.0002553,7]
[374604198,1753371063433,-164.352873,0.0002553,7]
[374604199,1753371063443,-183.586108,0.0002553,7]
[374604200,1753371063453,-183.586108,0.0002553,7]
[374604201,1753371063463,-183.586108,0.0002553,7]
[374604202,1753371063474,-183.586108,0.0002553,7]
[374604203,1753371063484,-183.586108,0.0002553,7]
[374604204,1753371063494,-183.586108,0.0002553,7]
[374604205,1753371063507,-183.586108,0.0002553,7]
[374604206,1753371063518,-183.586108,0.0002553,7]
[374604207,1753371063529,-183.586108,0.0002553,7]
[374604208,1753371063539,-183.586108,0.0002553,7]
[374604209,1753371063551,-183.586108,0.0002553,7]
[374604210,1753371063561,-183.586108,0.0002553,7]
[374604211,1753371063572,-183.586108,0.0002553,7]
[374604212,1753371063582,-183.586108,0.0002553,7]
[374604213,1753371063594,-183.586108,0.0002553,7]
[374604214,1753371063604,-183.586108,0.0002553,7]
[374604215,1753371063615,-183.586108,0.0002553,7]
[374604216,1753371063625,-183.586105,0.0002553,7]
[374604217,1753371063634,-151.0,0.0002553,7]
[374604218,1753371063644,-151.0,0.0002553,7]
[374604219,1753371063654,-151.0,0.0002553,7]
[374604220,1753371063665,-151.0,0.0002553,7]
[374604221,1753371063675,-151.0,0.0002553,7]
[374604222,1753371063685,-151.0,0.0002553,7]
[374604223,1753371063695,-151.0,0.0002553,7]
[374604224,1753371063705,-151.0,0.0002553,7]
[374604225,1753371063715,-187.948996,0.0002553,7]
[374604226,1753371063726,-151.0,0.0002553,7]
[374604227,1753371063736,-151.0,0.0002553,7]
[374604228,1753371063746,-151.0,0.0002553,7]
[374604229,1753371063756,-151.0,0.0002553,7]
[374604230,1753371063766,-151.0,0.0002553,7]
[374604231,1753371063776,-151.0,0.0002553,7]
[374604232,1753371063786,-151.0,0.0002553,7]
[374604233,1753371063796,-151.0,0.0002553,7]
[374604234,1753371063810,-151.0,0.0002553,7]
[374604235,1753371063821,-151.0,0.0002553,7]
[374604236,1753371063831,-151.0,0.0002553,7]
[374604237,1753371063841,-264.811179,0.0002553,7]
[374604238,1753371063851,-151.0,0.0002553,7]
[374604239,1753371063861,-151.0,0.0002553,7]
[374604240,1753371063872,-151.0,0.0002553,7]
[374604241,1753371063881,-151.0,0.0002553,7]
[374604242,1753371063891,-151.0,0.0002553,7]
[374604243,1753371063901,-151.0,0.0002553,7]
[374604244,1753371063911,-151.0,0.0002553,7]
[374604245,1753371063920,-151.0,0.0002553,7]
[374604246,1753371063930,-151.0,0.0002553,7]
[374604247,1753371063940,-151.0,0.0002553,7]
[374604248,1753371063950,-151.0,0.0002553,7]
[374604249,1753371063960,-151.0,0.0002553,7]
[374604250,1753371063969,-151.0,0.0002553,7]
[374604251,1753371063979,-219.036977,0.0002553,7]
[374604252,1753371063988,-151.0,0.0002553,7]
[374604253,1753371063998,-151.0,0.0002553,7]
[374604254,1753371064007,-151.0,0.0002553,7]
[374604255,1753371064017,-151.0,0.0002553,7]
[374604256,1753371064027,-151.0,0.0002553,7]
[374604257,1753371064037,-151.0,0.0002553,7]
[374604258,1753371064050,-151.0,0.0002553,7]
[374604259,1753371064060,-151.0,0.0002553,7]
[374604260,1753371064070,-151.0,0.0002553,7]
[374604261,1753371064079,-151.0,0.0002553,7]
[374604262,1753371064089,-268.107111,0.0002553,7]
[374604263,1753371064099,-163.055195,0.0002553,7]
[374604264,1753371064110,-163.055195,0.0002553,7]
[374604265,1753371064120,-163.055195,0.0002553,7]
[374604266,1753371064130,-163.055195,0.0002553,7]
[374604267,1753371064140,-163.055195,0.0002553,7]
[374604268,1753371064150,-163.055195,0.0002553,7]
[374604269,1753371064160,-163.055195,0.0002553,7]
[374604270,1753371064170,-163.055195,0.0002553,7]
[374604271,1753371064180,-163.055195,0.0002553,7]
[374604272,1753371064189,-163.055195,0.0002553,7]
[374604273,1753371064199,-163.055195,0.0002553,7]
[374604274,1753371064209,-163.055195,0.0002553,7]
[374604275,1753371064219,-163.055195,0.0002553,7]
[374604276,1753371064229,-163.055203,0.0002553,7]
[374604277,1753371064239,-167.805232,0.0002553,7]
[374604278,1753371064249,-167.805232,0.0002553,7]
[374604279,1753371064260,-167.805232,0.0002553,7]
[374604280,1753371064270,-167.805232,0.0002553,7]
[374604281,1753371064280,-167.805232,0.0002553,7]
[374604282,1753371064290,-167.805232,0.0002553,7]
[374604283,1753371064303,-167.805232,0.0002553,7]
[374604284,1753371064313,-167.805232,0.0002553,7]
[374604285,1753371064323,-167.805232,0.0002553,7]
[374604286,1753371064334,-167.805232,0.0002553,7]
[374604287,1753371064344,-167.805232,0.0002553,7]
[374604288,1753371064354,-167.805232,0.0002553,7]
[374604289,1753371064364,-167.805232,0.0002553,7]
[374604290,1753371064374,-167.805232,0.0002553,7]
[374604291,1753371064384,-167.805232,0.0002553,7]
[374604292,1753371064394,-167.805232,0.0002553,7]
[374604293,1753371064404,-167.805232,0.0002553,7]
[374604294,1753371064414,-167.805242,0.0002553,7]
[374604295,1753371064423,-270.105453,0.0002553,7]
[374604296,1753371064436,-270.105453,0.0002553,7]
[374604297,1753371064446,-270.105449,0.0002553,7]
[374604298,1753371064455,-151.0,0.0002553,7]
[374604299,1753371064465,-151.0,0.0002553,7]
[374604300,1753371064475,-151.0,0.0002553,7]
[374604301,1753371064486,-151.0,0.0002553,7]
[374604302,1753371064496,-151.0,0.0002553,7]
[374604303,1753371064507,-151.0,0.0002553,7]
[374604304,1753371064517,-151.0,0.0002553,7]
[374604305,1753371064527,-160.579338,0.0002553,7]
[374604306,1753371064536,-151.0,0.0002553,7]
[374604307,1753371064546,-151.0,0.0002553,7]
[374604308,1753371064559,-151.0,0.0002553,7]
[374604309,1753371064569,-151.0,0.0002553,7]
[374604310,1753371064579,-151.0,0.0002553,7]
[374604311,1753371064591,-151.0,0.0002553,7]
[374604312,1753371064601,-151.0,0.0002553,7]
[374604313,1753371064610,-224.718233,0.0002553,7]
[374604314,1753371064620,-224.718233,0.0002553,7]
[374604315,1753371064630,-224.718233,0.0002553,7]
[374604316,1753371064640,-224.718233,0.0002553,7]
[374604317,1753371064650,-224.718233,0.0002553,7]
[374604318,1753371064660,-224.718233,0.0002553,7]
[374604319,1753371064669,-224.718233,0.0002553,7]
[374604320,1753371064680,-224.718233,0.0002553,7]
[374604321,1753371064689,-224.718233,0.0002553,7]
[374604322,1753371064699,-248.767287,0.0002553,7]
[374604323,1753371064708,-248.767287,0.0002553,7]
[374604324,1753371064718,-248.767287,0.0002553,7]
[374604325,1753371064727,-248.767287,0.0002553,7]
[374604326,1753371064737,-248.767287,0.0002553,7]
[374604327,1753371064746,-248.767287,0.0002553,7]
[374604328,1753371064756,-248.767287,0.0002553,7]
[374604329,1753371064765,-248.767287,0.0002553,7]
[374604330,1753371064775,-248.767287,0.0002553,7]
[374604331,1753371064784,-248.767287,0.0002553,7]
[374604332,1753371064794,-248.767287,0.0002553,7]
[374604333,1753371064810,-248.767287,0.0002553,7]
[374604334,1753371064821,-248.767287,0.0002553,7]
[374604335,1753371064831,-248.76729,0.0002553,7]
[374604336,1753371064840,-224.718233,0.0002553,7]
[374604337,1753371064850,-224.718233,0.0002553,7]
[374604338,1753371064860,-224.718233,0.0002553,7]
[374604339,1753371064869,-224.718233,0.0002553,7]
[374604340,1753371064879,-224.718233,0.0002553,7]
[374604341,1753371064889,-224.718233,0.0002553,7]
[374604342,1753371064898,-224.718233,0.0002553,7]
[374604343,1753371064908,-224.718233,0.0002553,7]
[374604344,1753371064918,-224.718231,0.0002553,7]
[374604345,1753371064928,-336.322816,0.0002553,7]
[374604346,1753371064938,-336.322816,0.0002553,7]
[374604347,1753371064948,-336.322816,0.0002553,7]
[374604348,1753371064957,-336.322816,0.0002553,7]
[374604349,1753371064967,-336.322816,0.0002553,7]
[374604350,1753371064977,-336.322816,0.0002553,7]
[374604351,1753371064987,-336.322816,0.0002553,7]
[374604352,1753371064998,-336.322816,0.0002553,7]
[374604353,1753371065008,-336.322816,0.0002553,7]
[374604354,1753371065018,-336.322816,0.0002553,7]
[374604355,1753371065027,-336.322816,0.0002553,7]
[374604356,1753371065037,-336.322816,0.0002553,7]
[374604357,1753371065047,-336.322816,0.0002553,7]
[374604358,1753371065061,-336.322825,0.0002553,7]
[374604359,1753371065071,-186.976971,0.0002553,7]
[374604360,1753371065081,-186.976971,0.0002553,7]
[374604361,1753371065092,-186.976971,0.0002553,7]
[374604362,1753371065102,-186.976971,0.0002553,7]
[374604363,1753371065112,-186.976971,0.0002553,7]
[374604364,1753371065122,-186.976971,0.0002553,7]
[374604365,1753371065132,-186.976971,0.0002553,7]
[374604366,1753371065142,-186.976971,0.0002553,7]
[374604367,1753371065152,-186.976971,0.0002553,7]
[374604368,1753371065161,-186.976971,0.0002553,7]
[374604369,1753371065171,-186.976971,0.0002553,7]
[374604370,1753371065180,-186.976971,0.0002553,7]
[374604371,1753371065190,-186.976971,0.0002553,7]
[374604372,1753371065200,-186.97697183,0.0002553,7]
[374604373,1753371065210,-200.0,0.00025531,2]
[374604374,1753371065219,-199.886,0.00025531,2]
[374604375,1753371065228,-151.0,0.00025532,7]
[374604376,1753371065239,-151.0,0.00025532,7]
[374604377,1753371065249,-151.0,0.00025532,7]
[374604378,1753371065258,-151.0,0.00025532,7]
[374604379,1753371065268,-151.0,0.00025532,7]
[374604380,1753371065278,-151.0,0.00025532,7]
[374604381,1753371065287,-151.0,0.00025532,7]
[374604382,1753371065297,-151.0,0.00025532,7]
[374604383,1753371065308,-151.0,0.00025532,7]
[374604384,1753371065318,-151.0,0.00025532,7]
[374604385,1753371065328,-151.0,0.00025532,7]
[374604386,1753371065338,-151.0,0.00025532,7]
[374604387,1753371065348,-151.0,0.00025532,7]
[374604388,1753371065357,-151.0,0.00025532,7]
[374604389,1753371065367,-295.215646,0.00025532,7]
[374604390,1753371065377,-151.0,0.00025532,7]
[374604391,1753371065387,-153.346447,0.00025532,7]
[374604392,1753371065397,-151.0,0.00025532,7]
[374604393,1753371065406,-288.914754,0.00025532,7]
[374604394,1753371065419,-337.09095,0.00025532,7]
[374604395,1753371065437,-337.09095,0.00025532,7]
[374604396,1753371065455,-337.09095,0.00025532,7]
[374604397,1753371065475,-337.09095,0.00025532,7]
[374604398,1753371065492,-337.09095,0.00025532,7]
[374604399,1753371065502,-337.09095,0.00025532,7]
[374604400,1753371065513,-337.09095,0.00025532,7]
[374604401,1753371065523,-337.09095,0.00025532,7]
[374604402,1753371065532,-337.09095,0.00025532,7]
[374604403,1753371065542,-337.09095,0.00025532,7]
[374604404,1753371065554,-337.09095,0.00025532,7]
[374604405,1753371065563,-337.09095,0.00025532,7]
[374604406,1753371065575,-337.09095,0.00025532,7]
[374604407,1753371065585,-337.09095,0.00025532,7]
[374604408,1753371065595,-337.09095,0.00025532,7]
[374604409,1753371065604,-337.09095,0.00025532,7]
[374604410,1753371065614,-337.09095,0.00025532,7]
[374604411,1753371065624,-337.09095,0.00025532,7]
[374604412,1753371065634,-337.09095,0.00025532,7]
[374604413,1753371065644,-337.090942,0.00025532,7]
[374604414,1753371065654,-5000.0,0.00025532,30]
[374604415,1753371065666,-5000.0,0.00025532,30]
[374604416,1753371065675,-5000.0,0.00025532,30]
[374604417,1753371065685,-5000.0,0.00025532,30]
[374604418,1753371065695,-5000.0,0.00025532,30]
[374604419,1753371065705,-5000.0,0.00025532,30]
[374604420,1753371065715,-5000.0,0.00025532,30]
[374604421,1753371065724,-150.188479,0.00025532,20]
[374604422,1753371065733,-151.0,0.00025532,7]
[374604423,1753371065743,-151.0,0.00025532,7]
[374604424,1753371065752,-151.0,0.00025532,7]
[374604425,1753371065762,-151.0,0.00025532,7]
[374604426,1753371065772,-151.0,0.00025532,7]
[374604427,1753371065782,-151.0,0.00025532,7]
[374604428,1753371065791,-151.0,0.00025532,7]
[374604429,1753371065803,-151.0,0.00025532,7]
[374604430,1753371065812,-151.0,0.00025532,7]
[374604431,1753371065822,-215.869112,0.00025532,7]
[374604432,1753371065831,-331.746401,0.00025532,7]
[374604433,1753371065842,-151.0,0.00025532,7]
[374604434,1753371065851,-331.746401,0.00025532,7]
[374604435,1753371065860,-151.0,0.00025532,7]
[374604436,1753371065869,-151.0,0.00025532,7]
[374604437,1753371065879,-224.942976,0.00025532,7]
[374604438,1753371065888,-849.243154,0.00025532,7]
[374604439,1753371065898,-849.243154,0.00025532,7]
[374604440,1753371065908,-151.0,0.00025532,7]
[374604441,1753371065918,-473.158341,0.00025532,7]
[374604442,1753371065927,-473.158341,0.00025532,7]
[374604443,1753371065938,-246.557261,0.00025532,7]
[374604444,1753371065948,-242.079458,0.00025532,7]
[374604445,1753371065958,-246.557261,0.00025532,7]
[374604446,1753371065967,-1113.87,0.00025534,2]
[374604447,1753371065978,-2887.51,0.00025534,2]
[374604448,1753371065987,-820.25,0.00025534,2]
[374604449,1753371065998,-1954.28,0.00025534,2]
[374604450,1753371066008,-1097.3,0.00025534,2]
[374604451,1753371066115,-676.99,0.00025536,2]
[374604452,1753371066139,-538.26644076,0.00025536,2]
[374604453,1753371066150,-514.89,0.00025536,2]
[374604454,1753371066159,-4513.08,0.00025536,2]
[374604455,1753371066169,-528.37,0.00025536,2]
[374604456,1753371066179,-824.6,0.00025536,2]
[374604457,1753371066189,-1422.3,0.00025537,2]
[374604458,1753371066199,-524.6,0.00025537,2]
[374604459,1753371066208,-1053.66,0.00025537,2]
[374604460,1753371066219,-489.95,0.00025537,2]
[374604461,1753371066229,-1868.57,0.00025537,2]
[374604462,1753371066238,-1108.92,0.00025537,2]
[374604463,1753371066248,-678.6,0.00025537,2]
[374604464,1753371066258,-2149.65,0.00025537,2]
[374604465,1753371066268,-703.72,0.00025537,2]
[374604466,1753371066277,-150.188479,0.00025538,14]
[374604467,1753371066287,-217.0,0.00025543,2]
[374604468,1753371066298,-6866791.74059907,0.00025554,20]
[374604469,1753371066310,-3375303.13887524,0.00025554,20]
[374604470,1753371066395,-518.0429722,0.00024434,2]
[374604471,1753371066405,-912677.06676953,0.00025554,20]
[374604472,1753371066418,-17003.82067082,0.00025554,20]
[374604473,1753371066482,850.47466021,0.0001918,2]
[374604474,1753371112726,150.0,0.00018414,2]
[374604475,1753371179390,150.0,0.00018657,2]
[374604478,1753371244096,150.0,0.00017785,2]
[374604479,1753371285077,4136.03037577,0.0001918,2]
[374604480,1753371300339,288.38232,0.0001918,2]
[374604481,1753371308119,150.0,0.00017738,2]
[374604482,1753371310315,150.0,0.00018582,2]
[374604483,1753371510616,4324.1093258,0.00018534,2]
[374604485,1753371561105,3260.8875318,0.00018407,2]
[374604486,1753371570621,3526.0,0.00026027,120]
[374604488,1753371766898,157.537137,0.00013699,2]
[374604489,1753371780889,1336.67582181,0.00018407,2]
[374604490,1753371780917,252.23381909,0.00018407,2]
[374604491,1753371808442,183.31196,0.00018549,2]
[374604492,1753371808876,183.31196,0.00018549,61]
[374604493,1753371809096,183.31196,0.00018549,120]
[374604494,1753371835952,19564.45422091,0.00018402,2]
[374604495,1753371835981,5335.54577909,0.00018402,2]
[374604496,1753371898456,10000.0,0.00018381,2]
[374604497,1753371937186,-1643.64881945,0.00019204,2]
[374604498,1753371941362,304.7058102,0.00018366,2]
[374604500,1753372029617,150.0,0.00014677,2]
[374604501,1753372034114,-156.4720611,0.00019291,2]
[374604502,1753372034134,-275.80337894,0.00019299,2]
[374604503,1753372034155,-275.80337891,0.00019301,2]
[374604504,1753372034181,-275.80337891,0.00019302,2]
[374604505,1753372034202,-43.28431343,0.00019304,2]
[374604506,1753372041093,-232.51906548,0.00019304,2]
[374604507,1753372041113,-275.80337891,0.00019305,2]
[374604508,1753372041134,-178.09502948,0.00019306,2]
[374604509,1753372041154,-286.05061867,0.00019391,2]
[374604510,1753372041176,-1641.63092584,0.00019399,2]
[374604511,1753372041197,-379.31,0.00019399,3]
[374604512,1753372041217,-190.71458507,0.00019399,3]
[374604513,1753372047139,-152.51541493,0.00019399,3]
[374604514,1753372047161,-183.29,0.00019399,3]
[374604515,1753372047184,-494.74465061,0.00019399,3]
[374604516,1753372052093,-55.14534939,0.00019399,3]
[374604517,1753372052115,-678.81890899,0.00019404,2]
[374604518,1753372093832,150.0,0.00015003,2]
[374604519,1753372094750,150.0,0.00015718,2]
[374604520,1753372095224,150.0,0.00016432,2]
[374604521,1753372095649,150.0,0.00017147,2]
[374604522,1753372096094,150.0,0.00017861,2]
[374604523,1753372096547,150.0,0.00018576,2]
[374604527,1753372161650,150.0,0.00014765,2]
[374604528,1753372162065,150.0,0.00015468,2]
[374604529,1753372162492,150.0,0.00016171,2]
[374604530,1753372162884,150.0,0.00016874,2]
[374604531,1753372163292,150.0,0.00017577,2]
[374604532,1753372163767,150.0,0.00018281,2]
[374604533,1753372205687,2409.74841071,0.00016761,2]
[374604534,1753372205712,10894.25158929,0.00016761,2]
[374604595,1753372232388,-157.87454612,0.00019304,2]
[374604597,1753372232399,-222.53256924,0.00019304,2]
[374604833,1753372239074,-186.33847548,0.00019304,2]
[374604835,1753372239084,-408.8710447,0.00019305,2]
[374604837,1753372239094,-197.78499571,0.00019394,3]
[374604839,1753372239106,-269.06500429,0.00019394,3]
[374604841,1753372239115,-233.43,0.00019394,3]
[374604843,1753372239125,-700.29,0.00019394,3]
[374604845,1753372239135,-271.35523162,0.00019395,3]
[374604847,1753372239147,-662.35476838,0.00019395,3]